bitfinex-derivatives/quotes_BTCF0:USTF0_20250117
["timestamp","ask_amount","ask_price","bid_price","bid_amount"]
[1737124414537,0.409342,103010.0,102990.0,0.409348]
[1737124414946,0.048548,103000.0,102980.0,0.3608]
[1737124415138,0.048548,103000.0,102970.0,0.931559]
[1737124415139,0.3608,103000.0,102970.0,0.931559]
[1737124415450,1.909348,103000.0,102970.0,0.931559]
[1737124415648,1.909348,103000.0,102980.0,0.409354]
[1737124415649,0.409348,103000.0,102980.0,0.409354]
[1737124416145,0.409342,103010.0,102990.0,0.3608]
[1737124416338,2.0712751,103020.0,103000.0,0.409346]
[1737124416339,0.409337,103020.0,103000.0,0.409346]
[1737124416534,0.048537,103020.0,103000.0,0.409346]
[1737124416732,0.048537,103020.0,103010.0,0.3608]
[1737124416938,0.048537,103020.0,102960.0,0.05835808]
[1737124416939,0.9806111,103020.0,102960.0,0.37059408]
[1737124417145,0.048556,102980.0,102960.0,0.409364]
[1737124417446,1.909353,102990.0,102960.0,0.409364]
[1737124417849,0.409355,102980.0,102960.0,0.3608]
[1737124418053,0.3608,102980.0,102960.0,0.3608]
[1737124418235,0.04856,102970.0,102960.0,0.3608]
[1737124418544,0.04856,102970.0,102950.0,0.409368]
[1737124418941,0.048564,102960.0,102940.0,0.41893095]
[1737124419343,0.048564,102960.0,102940.0,0.3608]
[1737124419549,0.048569,102950.0,102930.0,0.93295587]
[1737124419749,0.048569,102950.0,102930.0,0.88437687]
[1737124419954,0.322766,102960.0,102940.0,0.6198471]
[1737124420254,0.048566,102960.0,102940.0,0.2590471]
[1737124420455,0.048566,102960.0,102940.0,0.6198471]
[1737124420751,0.3608,102970.0,102940.0,0.6198471]
[1737124421053,0.048574,102940.0,102930.0,0.52257687]
[1737124421243,0.409374,102940.0,102930.0,0.52257687]
[1737124421450,0.048574,102940.0,102930.0,0.52257687]
[1737124421747,0.409374,102940.0,102930.0,0.52257687]
[1737124422139,0.409374,102940.0,102930.0,0.00045687]
[1737124423150,0.6441,102950.0,102930.0,0.36125687]
[1737124423344,0.409374,102940.0,102930.0,0.00045687]
[1737124423544,0.409374,102940.0,102900.0,0.7198671]
[1737124423545,0.048588,102910.0,102900.0,0.1]
[1737124423753,0.048588,102910.0,102900.0,0.148593]
[1737124423941,0.409388,102910.0,102900.0,0.1]
[1737124424142,0.6198631,102910.0,102890.0,0.17323451]
[1737124424355,0.7114751,102900.0,102870.0,0.50813028]
[1737124424548,0.3608,102890.0,102870.0,0.17323451]
[1737124424747,0.409402,102880.0,102870.0,0.17323451]
[1737124425452,0.6198771,102880.0,102870.0,0.17323451]
[1737124425653,0.048612,102860.0,102850.0,0.00145815]
[1737124425950,0.409412,102860.0,102850.0,0.00145815]
[1737124426154,0.409412,102860.0,102840.0,0.1730966]
[1737124426155,0.048616,102850.0,102840.0,0.1730966]
[1737124426346,0.409416,102850.0,102840.0,0.18829742]
[1737124426755,1.909416,102850.0,102840.0,0.18829742]
[1737124427658,0.048621,102840.0,102810.0,1.1421501]
[1737124427955,0.048626,102830.0,102810.0,1.1421501]
[1737124428252,0.409426,102830.0,102810.0,0.570875]
[1737124428456,0.409426,102830.0,102800.0,0.47207403]
[1737124428457,0.3608,102820.0,102800.0,0.47207403]
[1737124428650,0.3608,102820.0,102800.0,0.11127403]
[1737124428651,0.409435,102810.0,102800.0,0.11127403]
[1737124429151,0.048641,102800.0,102770.0,1.1423261]
[1737124429345,0.409441,102800.0,102770.0,1.16665722]
[1737124429549,1.5,102810.0,102790.0,0.2104751]
[1737124429861,0.048634,102820.0,102800.0,0.2104751]
[1737124430158,0.048634,102820.0,102800.0,0.5712751]
[1737124430359,0.409434,102820.0,102800.0,0.5712751]
[1737124430654,0.409434,102820.0,102800.0,0.6199151]
[1737124431060,0.4941,102830.0,102810.0,0.2104751]
[1737124431259,0.409431,102820.0,102800.0,0.6199151]
[1737124431456,0.3608,102820.0,102800.0,0.6199151]
[1737124432060,0.542728,102830.0,102810.0,0.2104751]
[1737124432245,0.542728,102830.0,102800.0,0.6199151]
[1737124432656,0.3608,102820.0,102800.0,0.6199151]
[1737124433360,0.409428,102830.0,102800.0,0.6199151]
[1737124433560,0.36225964,102850.0,102820.0,0.2104751]
[1737124433757,0.048623,102840.0,102830.0,0.2104751]
[1737124434062,0.05007764,102850.0,102830.0,0.5712751]
[1737124434459,0.41087764,102850.0,102830.0,0.5712751]
[1737124434652,0.05007764,102850.0,102840.0,0.5712751]
[1737124434851,0.05006416,102880.0,102850.0,0.048615]
[1737124435152,0.00145916,102880.0,102870.0,0.6198821]
[1737124435351,0.048594,102900.0,102880.0,0.048602]
[1737124435560,0.148594,102900.0,102880.0,0.6198771]
[1737124435760,0.509394,102900.0,102880.0,0.6198771]
[1737124436265,0.148594,102900.0,102880.0,0.2590771]
[1737124436449,0.048597,102890.0,102870.0,0.409407]
[1737124436762,0.048602,102880.0,102860.0,0.5712751]
[1737124437056,0.048607,102870.0,102850.0,0.5712751]
[1737124437358,0.1,102900.0,102860.0,0.5712751]
[1737124437665,0.048597,102890.0,102880.0,0.5712751]
[1737124437961,0.1,102900.0,102880.0,0.6198761]
[1737124438254,0.1,102900.0,102890.0,0.6198721]
[1737124439849,0.148593,102900.0,102890.0,0.3608]
[1737124440051,0.1,102900.0,102880.0,0.2104751]
[1737124440260,0.048598,102890.0,102870.0,1.1426001]
[1737124440758,0.409404,102880.0,102850.0,0.3608]
[1737124440957,1.90941,102870.0,102850.0,0.5712751]
[1737124441156,1.54861,102870.0,102860.0,0.2104751]
[1737124441461,0.0486,102890.0,102860.0,0.5712751]
[1737124441666,0.048602,102880.0,102870.0,0.2104751]
[1737124441862,0.1,102900.0,102870.0,0.5712751]
[1737124442058,0.048602,102880.0,102870.0,0.3608]
[1737124442260,0.048607,102870.0,102860.0,0.5712751]
[1737124442559,0.048607,102870.0,102850.0,0.3608]
[1737124442760,0.048607,102870.0,102850.0,0.6198911]
[1737124442965,0.3608,102880.0,102860.0,0.5712751]
[1737124443266,0.048607,102870.0,102860.0,0.3608]
[1737124443465,0.04861,102870.0,102850.0,0.3607]
[1737124443665,0.04861,102870.0,102860.0,0.3608]
[1737124443858,0.04861,102870.0,102850.0,0.5711751]
[1737124444162,1.548604,102880.0,102860.0,0.6198861]
[1737124444564,1.909404,102880.0,102850.0,0.5712751]
[1737124444861,1.548603,102880.0,102860.0,0.5712751]
[1737124445070,0.552498,102890.0,102870.0,0.5712751]
[1737124445254,0.409398,102890.0,102870.0,0.5712751]
[1737124445460,0.048602,102880.0,102870.0,0.3608]
[1737124445654,0.409402,102880.0,102860.0,0.6198861]
[1737124445857,0.409402,102880.0,102860.0,0.5712751]
[1737124446260,0.048602,102880.0,102870.0,0.5712751]
[1737124446568,0.409398,102890.0,102870.0,0.6198811]
[1737124446864,0.4608,102900.0,102870.0,0.6198821]
[1737124447167,0.1,102900.0,102890.0,0.6198721]
[1737124447960,0.17137376,102930.0,102910.0,0.048585]
[1737124448162,0.17137376,102930.0,102920.0,0.6198581]
[1737124448360,0.52730475,102960.0,102920.0,0.6198581]
[1737124448667,1.70350967,102960.0,102940.0,0.5712751]
[1737124448862,1.70351067,102960.0,102940.0,0.048574]
[1737124449066,1.70351067,102960.0,102940.0,0.6198491]
[1737124449365,0.048566,102960.0,102950.0,0.3608]
[1737124449569,0.048566,102960.0,102940.0,0.6198491]
[1737124449765,0.048566,102960.0,102940.0,0.048574]
[1737124449969,0.04857,102950.0,102930.0,0.409378]
[1737124450159,0.048576,102940.0,102920.0,0.409382]
[1737124450470,0.3608,102950.0,102920.0,0.3608]
[1737124450661,0.048579,102930.0,102910.0,0.5712751]
[1737124450857,0.3608,102940.0,102900.0,0.41084744]
[1737124450858,0.048583,102920.0,102900.0,0.62132254]
[1737124451066,0.04858,102930.0,102910.0,0.6198611]
[1737124451265,0.409377,102940.0,102920.0,0.2104751]
[1737124451470,0.048579,102930.0,102920.0,0.3608]
[1737124451665,0.04857,102950.0,102930.0,0.048578]
[1737124451866,0.04856,102970.0,102940.0,0.6198471]
[1737124452065,0.409362,102970.0,102940.0,0.61959052]
[1737124452262,0.048573,102950.0,102930.0,0.3608]
[1737124452572,0.048579,102930.0,102910.0,0.048587]
[1737124452786,0.409379,102930.0,102910.0,0.409387]
[1737124452970,0.048575,102940.0,102920.0,0.6198581]
[1737124453463,0.409375,102940.0,102920.0,0.6198581]
[1737124453665,0.3608,102950.0,102920.0,0.6198581]
[1737124453666,0.04857,102950.0,102930.0,0.6198521]
[1737124454070,0.40937,102950.0,102930.0,0.048577]
[1737124454470,0.40937,102950.0,102920.0,0.5712751]
[1737124454681,0.40937,102950.0,102910.0,0.37032851]
[1737124454682,0.3608,102940.0,102910.0,0.3608]
[1737124454866,0.048579,102930.0,102910.0,0.409387]
[1737124455173,0.048579,102930.0,102910.0,0.048587]
[1737124455472,0.409375,102940.0,102920.0,0.6198581]
[1737124455673,0.40937,102950.0,102930.0,0.2104751]
[1737124456069,0.048566,102960.0,102940.0,0.2590471]
[1737124456374,1.909366,102960.0,102940.0,0.6198471]
[1737124456767,1.548566,102960.0,102940.0,0.2590471]
[1737124456963,0.048561,102970.0,102950.0,0.2104751]
[1737124457169,0.6198361,102970.0,102920.0,0.5712751]
[1737124457368,0.048572,102950.0,102930.0,0.6198521]
[1737124457570,0.3608,102970.0,102940.0,0.6198491]
[1737124457775,0.409361,102970.0,102950.0,0.6198441]
[1737124458071,0.409361,102970.0,102930.0,1.0937551]
[1737124458273,0.04857,102950.0,102930.0,0.571057]
[1737124458475,0.04857,102950.0,102930.0,1.1423321]
[1737124458974,0.04857,102950.0,102940.0,0.3608]
[1737124459169,0.409361,102970.0,102940.0,0.5712751]
[1737124459170,0.3608,102970.0,102940.0,0.5712751]
[1737124459484,0.3608,102970.0,102920.0,0.0095548]
[1737124459485,0.3608,102950.0,102920.0,0.0095548]
[1737124459778,0.770179,102930.0,102900.0,0.00145745]
[1737124460073,0.048578,102940.0,102910.0,0.409387]
[1737124460272,0.3608,102940.0,102920.0,0.3608]
[1737124460471,0.409376,102940.0,102920.0,0.409383]
[1737124461073,0.048579,102930.0,102910.0,0.048587]
[1737124461265,0.409379,102930.0,102910.0,0.048587]
[1737124461569,0.048584,102920.0,102900.0,0.00145745]
[1737124461870,0.04858,102930.0,102910.0,0.048587]
[1737124462072,0.6198551,102930.0,102900.0,0.00145745]
[1737124462277,0.048584,102920.0,102900.0,0.41084945]
[1737124462480,0.048584,102920.0,102900.0,0.05004945]
[1737124462775,0.048582,102930.0,102910.0,0.409388]
[1737124463075,0.048593,102900.0,102890.0,0.00987706]
[1737124463264,0.048605,102880.0,102860.0,0.497758]
[1737124463470,0.409407,102870.0,102860.0,0.001458]
[1737124464074,0.6198821,102870.0,102850.0,0.00971212]
[1737124464378,0.048616,102850.0,102840.0,0.22912541]
[1737124464564,0.409416,102850.0,102840.0,0.22912541]
[1737124465582,0.6198911,102850.0,102840.0,0.22912541]
[1737124465780,0.048626,102830.0,102820.0,0.00991663]
[1737124465972,0.409426,102830.0,102810.0,0.00145875]
[1737124466170,0.6199061,102820.0,102810.0,0.00145875]
[1737124466373,0.6199061,102820.0,102810.0,0.01520263]
[1737124466680,0.6199061,102820.0,102810.0,6.3e-07]
[1737124466877,0.6199061,102820.0,102790.0,0.28640677]
[1737124466878,0.04864,102800.0,102790.0,0.28640677]
[1737124467072,0.048649,102790.0,102770.0,0.23078134]
[1737124467268,0.40945,102780.0,102770.0,0.23078134]
[1737124467471,0.6199251,102780.0,102770.0,0.23078134]
[1737124467680,0.048654,102770.0,102760.0,0.28640677]
[1737124467877,0.048664,102750.0,102740.0,0.34368812]
[1737124468179,0.409464,102750.0,102740.0,0.34368812]
[1737124468573,0.409464,102750.0,102740.0,0.36803]
[1737124468773,1.8608,102760.0,102740.0,0.36803]
[1737124469081,0.3608,102760.0,102740.0,0.02434188]
[1737124469379,0.40945,102780.0,102750.0,0.5688751]
[1737124469585,0.40945,102780.0,102750.0,0.3584]
[1737124469975,0.409456,102770.0,102750.0,0.3584]
[1737124470178,0.5712751,102780.0,102760.0,0.3608]
[1737124470377,0.048657,102770.0,102740.0,0.409468]
[1737124470582,0.048659,102760.0,102740.0,0.3608]
[1737124470792,0.048659,102760.0,102730.0,0.3608]
[1737124470793,0.5712751,102750.0,102730.0,0.3608]
[1737124471089,0.048668,102740.0,102730.0,0.3608]
[1737124471379,0.048678,102720.0,102710.0,0.00146022]
[1737124471579,0.2591531,102720.0,102710.0,0.36226022]
[1737124471781,0.048678,102720.0,102710.0,0.36226022]
[1737124471979,0.3448751,102750.0,102710.0,0.37717154]
[1737124472178,0.543868,102750.0,102720.0,0.3608]
[1737124472387,0.04867,102740.0,102720.0,0.3608]
[1737124472577,0.04867,102740.0,102730.0,0.3608]
[1737124472784,0.048664,102750.0,102730.0,0.3608]
[1737124472989,0.2104751,102750.0,102720.0,0.3608]
[1737124473185,0.048671,102740.0,102720.0,0.3608]
[1737124473385,0.048664,102750.0,102730.0,0.3608]
[1737124473583,0.49906076,102770.0,102740.0,0.3608]
[1737124473584,0.00146076,102770.0,102740.0,0.3608]
[1737124473779,0.00146076,102770.0,102750.0,0.3608]
[1737124473974,0.00146076,102770.0,102760.0,0.3608]
[1737124474288,0.00146076,102770.0,102760.0,0.6199341]
[1737124474484,0.22160481,102800.0,102770.0,0.048652]
[1737124474678,0.048645,102790.0,102780.0,0.3608]
[1737124474889,0.00146021,102810.0,102780.0,0.9320751]
[1737124475185,0.41089821,102810.0,102790.0,0.3608]
[1737124475585,0.00146021,102810.0,102800.0,0.3608]
[1737124475776,0.00146021,102810.0,102800.0,0.40944]
[1737124475976,0.00146021,102810.0,102800.0,0.3608]
[1737124476179,0.05009621,102810.0,102790.0,0.409444]
[1737124476388,0.62137131,102810.0,102790.0,0.3608]
[1737124476588,0.26057131,102810.0,102780.0,0.3608]
[1737124476784,0.41089621,102810.0,102780.0,0.3608]
[1737124477178,0.04864,102800.0,102780.0,0.3608]
[1737124477783,0.04864,102800.0,102780.0,0.5712751]
[1737124478082,0.41089521,102810.0,102790.0,0.3608]
[1737124478485,0.40944,102800.0,102780.0,0.3608]
[1737124478686,0.3608,102800.0,102780.0,0.3608]
[1737124478987,0.048645,102790.0,102780.0,0.3608]
[1737124479587,0.048641,102800.0,102780.0,0.5712751]
[1737124479892,1.55009721,102810.0,102790.0,0.5712751]
[1737124480186,0.05009721,102810.0,102790.0,0.3608]
[1737124480390,0.04864,102800.0,102790.0,0.3608]
[1737124480596,0.048645,102790.0,102780.0,0.3608]
[1737124480782,0.048654,102770.0,102760.0,0.88384]
[1737124480981,0.048659,102760.0,102750.0,0.3608]
[1737124481389,0.048659,102760.0,102750.0,0.01520963]
[1737124481390,0.3608,102760.0,102750.0,0.01520963]
[1737124481688,0.409459,102760.0,102750.0,0.01520963]
[1737124482280,0.048659,102760.0,102750.0,0.01520963]
[1737124482790,0.409455,102770.0,102750.0,0.63514873]
[1737124482988,0.048659,102760.0,102750.0,0.37600963]
[1737124483189,0.048659,102760.0,102750.0,0.01520963]
[1737124483492,0.409459,102760.0,102750.0,0.01520963]
[1737124483695,0.048659,102760.0,102750.0,0.01520963]
[1737124484188,0.048659,102760.0,102750.0,0.37600963]
[1737124484396,0.409457,102770.0,102750.0,0.37600963]
[1737124484793,0.048657,102770.0,102760.0,0.3608]
[1737124485590,0.048657,102770.0,102760.0,0.37600963]
[1737124485991,0.048657,102770.0,102760.0,0.01520963]
[1737124485992,0.6199321,102770.0,102760.0,0.01520963]
[1737124486395,0.409457,102770.0,102760.0,0.01520963]
[1737124486790,0.048657,102770.0,102760.0,0.37600963]
[1737124486990,0.048657,102770.0,102760.0,0.01520963]
[1737124487793,0.048657,102770.0,102760.0,0.37600963]
[1737124488299,0.048657,102770.0,102760.0,0.42466863]
[1737124488597,0.04865,102780.0,102760.0,0.42466863]
[1737124488802,0.048646,102790.0,102770.0,0.6199261]
[1737124489098,0.048641,102800.0,102780.0,0.6199201]
[1737124489399,0.048641,102800.0,102790.0,0.3608]
[1737124489607,0.05009721,102810.0,102790.0,0.409444]
[1737124489803,0.048628,102830.0,102800.0,0.5712751]
[1737124489999,0.048628,102830.0,102820.0,0.5712751]
[1737124490406,0.17296381,102850.0,102820.0,0.6199031]
[1737124490703,0.048622,102840.0,102830.0,0.3608]
[1737124491105,0.048622,102840.0,102820.0,0.6199031]
[1737124491320,0.04863,102830.0,102810.0,0.3608]
[1737124491609,0.048631,102820.0,102800.0,0.7634141]
[1737124491911,0.048635,102810.0,102800.0,0.1435]
[1737124492103,0.048635,102810.0,102800.0,0.5043]
[1737124492700,0.409433,102820.0,102800.0,0.5043]
[1737124493112,0.458068,102820.0,102800.0,0.5043]
[1737124493314,0.409433,102820.0,102800.0,0.5043]
[1737124493808,0.048635,102810.0,102800.0,0.5043]
[1737124494911,0.3608,102830.0,102810.0,0.048634]
[1737124494912,0.409428,102830.0,102810.0,0.048634]
[1737124495111,1.5,102820.0,102810.0,0.3608]
[1737124495312,1.548631,102820.0,102810.0,0.3608]
[1737124496209,0.097257,102830.0,102810.0,0.6199101]
[1737124496511,0.048627,102830.0,102810.0,0.409435]
[1737124496811,0.097256,102830.0,102810.0,0.409435]
[1737124497110,1.5,102820.0,102810.0,0.409435]
[1737124497511,0.048627,102830.0,102810.0,0.6199101]
[1737124497712,0.409424,102840.0,102820.0,0.2591051]
[1737124498013,0.097249,102840.0,102820.0,0.6199051]
[1737124498208,0.048624,102840.0,102830.0,0.3608]
[1737124498405,0.22158081,102850.0,102830.0,0.6199001]
[1737124498612,0.22158081,102850.0,102840.0,0.6198961]
[1737124498613,0.17296381,102850.0,102840.0,0.6198961]
[1737124498918,0.20284412,102870.0,102840.0,0.6685141]
[1737124498919,0.0014592,102870.0,102840.0,0.6685141]
[1737124499105,0.0500662,102870.0,102860.0,0.5712751]
[1737124499299,0.0014592,102870.0,102860.0,0.409412]
[1737124499705,0.20138492,102880.0,102860.0,0.6198871]
[1737124499904,0.20138492,102880.0,102870.0,0.6198821]
[1737124500104,0.25892347,102900.0,102880.0,0.2590771]
[1737124500415,0.20221654,102920.0,102910.0,0.048588]
[1737124500706,0.23110461,102930.0,102910.0,0.9806631]
[1737124500918,0.20554658,102930.0,102920.0,0.6198581]
[1737124501105,0.19854658,102930.0,102920.0,0.3608]
[1737124501420,0.3608,102950.0,102920.0,0.3608]
[1737124501604,0.5712751,102930.0,102900.0,0.3608]
[1737124501809,0.048588,102910.0,102900.0,0.3608]
[1737124502011,0.3608,102930.0,102900.0,0.6198671]
[1737124502313,0.3608,102930.0,102910.0,0.3608]
[1737124502514,1.678675,102940.0,102920.0,0.3608]
[1737124503307,1.5,102940.0,102930.0,0.3608]
[1737124503513,1.548574,102940.0,102920.0,0.409383]
[1737124503714,2.0712751,102940.0,102910.0,0.3608]
[1737124503904,0.5712751,102930.0,102900.0,0.3608]
[1737124504109,0.3608,102920.0,102900.0,0.3608]
[1737124504309,0.048588,102910.0,102890.0,0.3608]
[1737124504609,0.18428,102930.0,102900.0,0.6198641]
[1737124504811,1.5,102940.0,102920.0,0.5712751]
[1737124505018,0.00145805,102960.0,102940.0,0.048573]
[1737124505208,0.00145805,102960.0,102950.0,0.3608]
[1737124505518,1.548561,102970.0,102950.0,0.3608]
[1737124505707,0.048561,102970.0,102950.0,0.3608]
[1737124505911,0.048567,102960.0,102940.0,0.3608]
[1737124507319,0.048574,102940.0,102920.0,0.88352]
[1737124507620,0.048567,102960.0,102930.0,0.409378]
[1737124507804,0.04857,102950.0,102930.0,0.409378]
[1737124508009,0.04857,102950.0,102940.0,0.3608]
[1737124508918,1.909362,102970.0,102940.0,0.409372]
[1737124509117,1.909362,102970.0,102950.0,0.3608]
[1737124509507,1.548562,102970.0,102950.0,0.3608]
[1737124509708,1.5,102970.0,102950.0,0.409368]
[1737124509908,2.0712751,102970.0,102940.0,0.3608]
[1737124510207,0.048569,102950.0,102940.0,0.3608]
[1737124510410,0.409369,102950.0,102920.0,0.88497726]
[1737124510614,0.2104751,102940.0,102920.0,0.36225726]
[1737124510816,0.048579,102930.0,102920.0,0.36225726]
[1737124511016,0.6198541,102930.0,102920.0,0.00145726]
[1737124511209,0.2104751,102930.0,102900.0,0.3608]
[1737124511414,0.048584,102920.0,102900.0,0.3608]
[1737124511611,1.548588,102910.0,102890.0,0.3608]
[1737124511808,0.048593,102900.0,102890.0,0.3608]
[1737124512117,1.548589,102910.0,102890.0,0.6198701]
[1737124512314,0.048584,102920.0,102900.0,0.409393]
[1737124512514,0.048584,102920.0,102900.0,0.3608]
[1737124512713,0.048579,102930.0,102910.0,0.3608]
[1737124512917,1.5,102920.0,102900.0,0.3608]
[1737124513112,0.048593,102900.0,102880.0,0.88473775]
[1737124513315,0.6198721,102890.0,102880.0,0.00145775]
[1737124513920,1.909397,102890.0,102880.0,0.00145775]
[1737124514123,0.409397,102890.0,102880.0,0.00145775]
[1737124514522,1.909397,102890.0,102880.0,0.00145775]
[1737124514729,1.548597,102890.0,102880.0,0.00145775]
[1737124514921,0.048594,102900.0,102880.0,0.62133185]
[1737124515226,0.048594,102900.0,102890.0,0.3608]
[1737124516017,0.3608,102900.0,102880.0,0.36225775]
[1737124516323,1.548597,102890.0,102880.0,0.00145775]
[1737124516530,0.048595,102900.0,102880.0,0.62133385]
[1737124516822,0.048595,102900.0,102880.0,0.41085875]
[1737124517021,0.048595,102900.0,102880.0,0.00145775]
[1737124517327,0.6198721,102890.0,102880.0,0.00145775]
[1737124517522,0.048597,102890.0,102880.0,0.36225775]
[1737124517721,0.048597,102890.0,102880.0,0.00145775]
[1737124517924,0.409397,102890.0,102880.0,0.00145775]
[1737124518426,0.048608,102870.0,102850.0,0.3608]
[1737124518721,0.048608,102870.0,102850.0,0.6198911]
[1737124519023,0.048608,102870.0,102850.0,0.3608]
[1737124519327,0.048608,102870.0,102830.0,0.3608]
[1737124519328,0.2104751,102860.0,102830.0,0.3608]
[1737124519521,0.048621,102840.0,102820.0,0.36225851]
[1737124520222,0.2751,102860.0,102830.0,0.5712751]
[1737124520419,0.048616,102850.0,102830.0,0.5712751]
[1737124520631,0.048616,102850.0,102830.0,0.3608]
[1737124520821,0.048616,102850.0,102830.0,0.409426]
[1737124522031,0.00145904,102890.0,102840.0,0.6198951]
[1737124522232,0.048602,102880.0,102870.0,0.3608]
[1737124522531,0.00145904,102890.0,102870.0,0.5712751]
[1737124522830,0.6367,102910.0,102880.0,0.3608]
[1737124523027,0.048597,102890.0,102880.0,0.3608]
[1737124523222,0.048597,102890.0,102870.0,0.409407]
[1737124523427,0.6367,102910.0,102870.0,0.409407]
[1737124523428,0.048593,102900.0,102870.0,0.5712751]
[1737124523624,0.048593,102900.0,102870.0,0.6198811]
[1737124523825,0.048601,102890.0,102870.0,0.3608]
[1737124524025,0.3608,102900.0,102870.0,0.3608]
[1737124524227,0.543389,102910.0,102880.0,0.6198751]
[1737124524429,0.182589,102910.0,102890.0,0.3608]
[1737124524633,0.048589,102910.0,102900.0,0.3608]
[1737124525225,0.00145851,102920.0,102900.0,0.5712751]
[1737124525420,0.17827,102950.0,102930.0,0.048578]
[1737124525619,0.3608,102960.0,102940.0,0.3608]
[1737124525830,1.548565,102960.0,102940.0,0.3608]
[1737124526023,0.048569,102950.0,102930.0,0.3608]
[1737124526234,0.04857,102950.0,102930.0,0.409377]
[1737124526433,0.04857,102950.0,102940.0,0.3608]
[1737124526631,0.04857,102950.0,102930.0,0.409377]
[1737124527730,0.048565,102960.0,102940.0,0.409372]
[1737124527924,1.5,102970.0,102950.0,0.3608]
[1737124528127,0.048564,102960.0,102950.0,0.3608]
[1737124528528,1.909361,102970.0,102950.0,0.409369]
[1737124528729,1.5,102970.0,102950.0,0.3608]
[1737124528925,1.548561,102970.0,102950.0,0.409367]
[1737124529334,0.048564,102960.0,102950.0,0.3608]
[1737124529534,0.048569,102950.0,102940.0,0.3608]
[1737124529733,0.048568,102960.0,102930.0,0.409378]
[1737124530036,0.048564,102960.0,102950.0,0.3608]
[1737124530230,0.048564,102960.0,102940.0,0.409373]
[1737124530836,0.048564,102960.0,102940.0,0.3608]
[1737124531335,1.54856,102970.0,102950.0,0.3608]
[1737124531535,0.05000976,102990.0,102970.0,0.048559]
[1737124531733,0.00145776,102990.0,102980.0,0.3608]
[1737124532037,0.00145776,102990.0,102980.0,0.409355]
[1737124532332,0.1,103000.0,102990.0,0.04855]
[1737124532533,0.1,103000.0,102990.0,0.40935]
[1737124532737,1e-06,103000.0,102990.0,0.6198251]
[1737124535840,1e-06,103000.0,102990.0,0.40935]
[1737124536029,1e-06,103000.0,102990.0,0.6198251]
[1737124541539,0.048547,103000.0,102990.0,0.3608]
[1737124541740,1e-06,103000.0,102990.0,0.40935]
[1737124541934,1e-06,103000.0,102990.0,0.6198251]
[1737124545439,1e-06,103000.0,102990.0,0.62958545]
[1737124547649,1e-06,103000.0,102990.0,0.76178545]
[1737124549439,1e-06,103000.0,102990.0,0.62958545]
[1737124550449,1e-06,103000.0,102990.0,0.41911035]
[1737124550945,1e-06,103000.0,102990.0,0.62958545]
[1737124551539,1e-06,103000.0,102990.0,0.41911035]
[1737124552141,1e-06,103000.0,102990.0,0.62958545]
[1737124554164,1e-06,103000.0,102980.0,0.409354]
[1737124554363,1e-06,103000.0,102990.0,0.40935]
[1737124554563,1e-06,103000.0,102990.0,0.6198251]
[1737124556868,1e-06,103000.0,102990.0,0.79013352]
[1737124560571,1e-06,103000.0,102990.0,0.84942581]
[1737124562770,1e-06,103000.0,102990.0,1.26031895]
[1737124563478,0.1325,103040.0,103020.0,0.048534]
[1737124563667,0.1325,103040.0,103030.0,0.3608]
[1737124564573,0.1325,103040.0,103030.0,0.409331]
[1737124564873,0.1325,103040.0,103030.0,0.3608]
[1737124565078,0.541827,103040.0,103020.0,0.048535]
[1737124565267,0.541827,103040.0,103020.0,0.22167695]
[1737124565467,0.3608,103030.0,103020.0,0.22167695]
[1737124565771,0.4933,103040.0,103020.0,0.22167695]
[1737124567373,0.4933,103040.0,103030.0,0.048531]
[1737124567575,0.1325,103040.0,103030.0,0.6198061]
[1737124567879,0.2763,103050.0,103030.0,0.68058142]
[1737124568077,0.2763,103050.0,103040.0,0.68057742]
[1737124568372,0.00145642,103060.0,103050.0,0.048522]
[1737124568565,0.61739472,103090.0,103070.0,0.048513]
[1737124568772,0.61739472,103090.0,103080.0,1.15397042]
[1737124568773,0.20343637,103090.0,103080.0,1.15397042]
[1737124568975,0.20343637,103090.0,103080.0,1.06685321]
[1737124569283,0.20343637,103090.0,103080.0,0.18413321]
[1737124569476,0.33244944,103100.0,103080.0,0.68055842]
[1737124569677,0.26353698,103120.0,103110.0,0.048494]
[1737124569866,0.04447962,103160.0,103110.0,0.048494]
[1737124569867,0.40930211,103190.0,103140.0,0.04848]
[1737124570176,0.36084311,103190.0,103170.0,0.3608]
[1737124570373,0.36084311,103190.0,103160.0,0.409268]
[1737124570564,1.75708969,103190.0,103170.0,0.3608]
[1737124570766,0.56939058,103180.0,103140.0,0.3608]
[1737124570966,0.56939058,103150.0,103130.0,0.3608]
[1737124571171,0.20859058,103140.0,103130.0,0.3608]
[1737124571376,0.3608,103170.0,103130.0,0.37042503]
[1737124571674,4.311e-05,103190.0,103130.0,0.00962503]
[1737124571675,0.3608,103150.0,103130.0,0.00962503]
[1737124571977,1.5,103140.0,103130.0,0.34368812]
[1737124572170,1.5,103140.0,103130.0,0.75297212]
[1737124572366,4.311e-05,103190.0,103130.0,1.2738787]
[1737124572678,0.56943369,103190.0,103170.0,0.3608]
[1737124572875,4.311e-05,103190.0,103170.0,0.3608]
[1737124573066,4.311e-05,103190.0,103170.0,0.53152683]
[1737124573272,1.5,103180.0,103170.0,0.53152683]
[1737124573571,1.909261,103180.0,103170.0,0.17072683]
[1737124573772,1.548461,103180.0,103170.0,0.17072683]
[1737124573981,1.5,103180.0,103170.0,0.17072683]
[1737124574279,1.5,103180.0,103160.0,0.3608]
[1737124574280,1.8608,103180.0,103160.0,0.3608]
[1737124574476,4.311e-05,103190.0,103170.0,1.09099058]
[1737124574667,0.1,103200.0,103190.0,0.048456]
[1737124574870,0.07316998,103200.0,103190.0,0.20859058]
[1737124575067,0.07316998,103200.0,103190.0,0.51939058]
[1737124575467,0.07316998,103200.0,103190.0,0.20704658]
[1737124575675,0.07316998,103200.0,103190.0,0.56784658]
[1737124575871,0.65704853,103210.0,103200.0,0.048451]
[1737124576075,0.65704853,103210.0,103200.0,0.61784158]
[1737124576378,0.65704853,103210.0,103200.0,0.91784158]
[1737124576684,0.09159209,103210.0,103200.0,0.91784158]